bitfinex-derivatives/quotes_SOLF0:USTF0_20241002
["timestamp","ask_amount","ask_price","bid_price","bid_amount"]
[1727872657060,3.4413,145.32,145.28,3.442]
[1727872657660,3.441,145.33,145.3,3.4416]
[1727872658252,3.441,145.33,145.25,20.02447334]
[1727872658253,3.4406,145.35,145.31,3.4412]
[1727872658753,5.7,145.36,145.31,3.4412]
[1727872659152,0.12502,145.37,145.31,3.4412]
[1727872659349,0.12502,145.37,145.29,16.53]
[1727872659756,0.12502,145.37,145.28,5.7]
[1727872659963,16.53,145.36,145.29,3.4417]
[1727872660261,16.53,145.36,145.28,5.7]
[1727872660650,3.4408,145.34,145.28,5.7]
[1727872661259,3.4408,145.34,145.29,3.4417]
[1727872661458,3.4408,145.34,145.28,5.7]
[1727872662462,3.4408,145.34,145.29,16.53]
[1727872663256,3.4408,145.34,145.31,3.4413]
[1727872665961,0.12502,145.37,145.31,3.4413]
[1727872666161,0.12502,145.37,145.32,3.4411]
[1727872666162,3.4406,145.35,145.32,3.4411]
[1727872671957,0.12502,145.37,145.31,16.53]
[1727872672766,3.4406,145.35,145.32,3.441]
[1727872673557,3.4406,145.35,145.32,14.021]
[1727872676060,3.4406,145.35,145.29,1.323]
[1727872676061,0.12502,145.37,145.34,3.4407]
[1727872676367,10.70502,145.37,145.33,10.58]
[1727872677070,3.4402,145.36,145.33,10.58]
[1727872677369,10.70502,145.37,145.33,10.58]
[1727872677767,3.4403,145.36,145.33,14.0209]
[1727872678964,0.12502,145.37,145.33,10.58]
[1727872679565,0.12502,145.37,145.33,14.0208]
[1727872679765,3.4403,145.36,145.33,14.0208]
[1727872680766,0.12502,145.37,145.33,10.58]
[1727872680972,3.4406,145.35,145.33,10.58]
[1727872681769,0.12502,145.37,145.33,10.58]
[1727872682070,3.4403,145.36,145.33,14.0209]
[1727872682567,3.56512,145.37,145.34,14.0206]
[1727872682768,0.12502,145.37,145.35,10.58]
[1727872683067,0.12502,145.37,145.35,14.0202]
[1727872683469,0.12502,145.37,145.36,10.58]
[1727872683661,0.12502,145.43,145.36,16.28]
[1727872683863,0.12502,145.43,145.4,10.58]
[1727872684168,0.12502,145.43,145.42,14.0188]
[1727872685271,0.12502,145.43,145.42,10.58]
[1727872685471,10.70502,145.43,145.37,2.6995]
[1727872685675,16.51,145.42,145.33,2.6082]
[1727872685863,16.51,145.4,145.33,1.3417]
[1727872686261,3.4402,145.36,145.33,4.75467964]
[1727872686469,16.51,145.4,145.34,3.4405]
[1727872687274,3.4397,145.39,145.34,3.4405]
[1727872687574,16.51,145.4,145.34,3.4405]
[1727872687971,3.4399,145.38,145.34,3.4405]
[1727872688870,3.44,145.37,145.34,3.4405]
[1727872689277,22.21,145.4,145.33,8.19557964]
[1727872689878,3.4402,145.37,145.33,8.19557964]
[1727872690173,3.4402,145.37,145.34,3.4407]
[1727872690674,22.21,145.4,145.31,22.33502]
[1727872690976,3.4411,145.32,145.31,0.12502]
[1727872693367,3.4425,145.27,145.25,0.12502]
[1727872694475,3.4426,145.26,145.25,0.12502]
[1727872694980,3.4425,145.27,145.25,0.12502]
[1727872695187,16.51,145.3,145.25,0.12502]
[1727872695476,3.4426,145.26,145.25,0.12502]
[1727872695675,5.7,145.27,145.25,0.12502]
[1727872696276,3.4426,145.26,145.25,0.12502]
[1727872696979,3.4426,145.26,145.21,16.51]
[1727872696980,3.4436,145.22,145.17,16.51]
[1727872697179,16.51,145.26,145.17,16.51]
[1727872697380,16.51,145.26,145.19,3.56912]
[1727872697577,3.4434,145.23,145.19,3.56912]
[1727872697776,16.51,145.28,145.19,16.63502]
[1727872697982,3.4429,145.25,145.21,3.4437]
[1727872698381,5.7,145.27,145.21,3.4437]
[1727872698781,5.7,145.27,145.22,3.4435]
[1727872698976,5.7,145.27,145.19,16.63502]
[1727872699378,3.443,145.25,145.21,3.4436]
[1727872699584,16.51,145.28,145.19,16.63502]
[1727872699789,16.51,145.28,145.21,16.51]
[1727872699790,3.4424,145.27,145.21,16.51]
[1727872700291,17.8445,145.3,145.21,16.51]
[1727872700292,5.7,145.29,145.21,16.51]
[1727872700589,1.3345,145.3,145.23,16.51]
[1727872700788,1.3345,145.3,145.24,3.38151669]
[1727872700988,4.7762,145.3,145.26,3.4424]
[1727872701781,4.7762,145.3,145.24,3.38151669]
[1727872701985,3.56642,145.31,145.27,16.51]
[1727872702185,0.12502,145.31,145.25,16.51]
[1727872703177,0.12502,145.31,145.24,9.08461489]
[1727872703178,0.12502,145.31,145.28,3.442]
[1727872703886,3.56642,145.31,145.28,3.442]
[1727872704082,0.12502,145.31,145.28,3.442]
[1727872704385,0.12502,145.31,145.27,16.51]
[1727872705086,0.12502,145.31,145.3,3.4416]
[1727872706586,3.4402,145.36,145.33,3.4408]
[1727872706791,5.7,145.39,145.33,3.4408]
[1727872706987,5.7,145.39,145.32,3.48544727]
[1727872707182,3.4399,145.38,145.34,3.4405]
[1727872707586,3.4399,145.38,145.32,3.48544727]
[1727872707983,3.56502,145.37,145.32,3.48544727]
[1727872708188,3.56502,145.37,145.32,9.18544727]
[1727872709389,3.4403,145.36,145.32,5.7]
[1727872709586,0.12502,145.37,145.32,5.7]
[1727872710093,3.4403,145.36,145.32,12.53647736]
[1727872710697,0.12502,145.37,145.34,3.4407]
[1727872711196,0.12502,145.37,145.32,9.09547736]
[1727872711394,0.12502,145.37,145.32,5.7]
[1727872711395,3.4408,145.34,145.32,5.7]
[1727872712494,3.4405,145.35,145.32,5.7]
[1727872713496,3.4403,145.36,145.33,3.4408]
[1727872713996,3.4403,145.36,145.32,9.141]
[1727872714187,0.12502,145.37,145.32,5.7]
[1727872714390,3.56502,145.37,145.32,9.09823008]
[1727872714691,0.12502,145.37,145.32,9.09823008]
[1727872714994,0.12502,145.37,145.34,3.4405]
[1727872715700,0.12502,145.37,145.33,16.51]
[1727872715988,0.12502,145.37,145.35,3.4403]
[1727872716394,0.12502,145.37,145.36,3.4402]
[1727872716999,0.12502,145.37,145.35,3.4403]
[1727872717794,0.12502,145.37,145.33,16.51]
[1727872717994,0.12502,145.37,145.34,3.4406]
[1727872718884,0.12502,145.37,145.32,5.7]
[1727872719084,0.12502,145.37,145.31,22.19]
[1727872719690,3.4406,145.35,145.32,3.441]
[1727872720295,0.12502,145.37,145.32,3.441]
[1727872720595,3.4404,145.36,145.31,22.19]
[1727872721496,3.4404,145.36,145.32,3.441]
[1727872722390,0.12502,145.37,145.32,3.441]
[1727872722593,0.12502,145.37,145.29,19.1272]
[1727872722794,0.12502,145.37,145.29,24.8072]
[1727872722990,0.12502,145.37,145.29,19.1272]
[1727872723296,0.12502,145.37,145.29,1.3228]
[1727872723987,3.441,145.33,145.3,3.4416]
[1727872724192,0.12502,145.37,145.3,3.4416]
[1727872724601,0.12502,145.37,145.29,17.8328]
[1727872725095,3.56512,145.37,145.34,3.4405]
[1727872725294,0.12502,145.37,145.33,16.51]
[1727872726303,0.12502,145.37,145.35,3.4402]
[1727872727097,0.12502,145.37,145.34,3.4406]
[1727872728401,3.56502,145.37,145.34,3.4406]
[1727872732002,0.12502,145.37,145.33,16.51]
[1727872732201,0.12502,145.37,145.35,3.4404]
[1727872733109,0.12502,145.37,145.32,9.18238006]
[1727872733298,3.4405,145.35,145.32,12.62338006]
[1727872734202,3.4405,145.35,145.32,6.94338006]
[1727872734607,3.4405,145.35,145.32,3.441]
[1727872734807,3.4407,145.34,145.31,9.1213]
[1727872735407,0.12502,145.37,145.3,9.1215]
[1727872735408,3.4409,145.33,145.3,9.1215]
[1727872735605,0.12502,145.37,145.3,5.68]
[1727872736118,3.4409,145.34,145.31,3.4414]
[1727872739506,5.80502,145.37,145.29,17.8328]
[1727872739705,5.80502,145.37,145.29,23.5128]
[1727872740116,5.80502,145.37,145.29,26.9545]
[1727872740117,3.4412,145.32,145.29,26.9545]
[1727872740508,3.4408,145.34,145.31,3.4413]
[1727872740711,0.12502,145.37,145.32,3.50936424]
[1727872741011,0.12502,145.37,145.33,16.51]
[1727872741210,0.12502,145.37,145.33,20.03071807]
[1727872741410,0.12502,145.37,145.34,3.4406]
[1727872741610,0.12502,145.37,145.33,20.03071807]
[1727872742108,0.12502,145.37,145.35,16.51]
[1727872743111,0.12502,145.37,145.36,3.4402]
[1727872743910,0.12502,145.37,145.29,1.3228]
[1727872744116,0.12502,145.37,145.31,16.51]
[1727872744513,3.4403,145.36,145.31,16.51]
[1727872744710,0.12502,145.37,145.31,16.51]
[1727872745107,0.12502,145.37,145.36,3.4402]
[1727872746418,0.12502,145.43,145.35,17.8937]
[1727872746619,0.12502,145.43,145.4,16.51]
[1727872746820,0.12502,145.43,145.4,22.19]
[1727872747022,0.12502,145.43,145.42,3.4388]
[1727872747921,0.12502,145.43,145.41,3.439]
[1727872748316,0.12502,145.43,145.4,22.19]
[1727872748929,0.12502,145.43,145.41,3.439]
[1727872750127,0.12502,145.43,145.4,9.1191]
[1727872750331,0.12502,145.43,145.4,5.68]
[1727872750637,0.12502,145.43,145.42,3.4388]
[1727872751526,16.63502,145.43,145.34,3.44259503]
[1727872751733,16.63502,145.43,145.33,17.7911]
[1727872751919,16.63502,145.43,145.34,5.68]
[1727872752124,3.4389,145.42,145.38,3.4396]
[1727872752734,0.12502,145.43,145.36,16.51]
[1727872752936,3.4391,145.41,145.37,3.4398]
[1727872755837,0.12502,145.43,145.41,3.439]
[1727872756036,0.12502,145.43,145.39,22.19]
[1727872756336,0.12502,145.43,145.39,23.55]
[1727872756533,0.12502,145.43,145.4,3.439]
[1727872756837,0.12502,145.43,145.39,23.55]
[1727872757235,0.12502,145.43,145.39,26.9893]
[1727872758033,0.12502,145.43,145.39,7.04]
[1727872758237,3.4388,145.42,145.39,1.36]
[1727872758832,3.56362,145.43,145.39,1.36]
[1727872759733,3.56362,145.43,145.39,4.7995]
[1727872761933,0.12502,145.43,145.39,4.7995]
[1727872762739,3.56352,145.43,145.39,4.7995]
[1727872763233,0.12502,145.43,145.41,3.439]
[1727872763436,0.12502,145.43,145.39,17.87]
[1727872764037,0.12502,145.43,145.4,3.4391]
[1727872764942,3.56362,145.43,145.4,3.4391]
[1727872768343,3.4388,145.42,145.4,3.4391]
[1727872768540,0.12502,145.43,145.38,5.68]
[1727872769046,3.4392,145.41,145.38,5.68]
[1727872769234,3.4392,145.41,145.38,9.1197]
[1727872770047,3.4392,145.41,145.39,3.4395]
[1727872770439,0.12502,145.43,145.38,5.68]
[1727872770742,0.12502,145.43,145.4,3.4391]
[1727872770945,3.56372,145.43,145.4,3.4391]
[1727872772942,3.439,145.41,145.39,3.4394]
[1727872773146,3.439,145.41,145.38,5.68]
[1727872773535,3.439,145.41,145.38,9.1196]
[1727872775545,3.439,145.41,145.38,5.6196]
[1727872778149,0.12502,145.43,145.39,16.51]
[1727872778654,0.12502,145.43,145.42,3.4388]
[1727872779848,0.12502,145.43,145.42,9.0988]
[1727872780753,0.12502,145.43,145.4,2.6764]
[1727872780947,0.12502,145.43,145.39,5.66]
[1727872781256,3.4391,145.41,145.37,9.0998]
[1727872781649,3.4391,145.41,145.37,5.66]
[1727872781854,3.4389,145.42,145.38,3.4396]
[1727872782748,16.63502,145.43,145.38,3.4396]
[1727872782749,3.4391,145.41,145.38,3.4396]
[1727872783155,0.12502,145.43,145.39,3.4393]
[1727872783348,3.4389,145.42,145.39,3.4393]
[1727872784554,0.12502,145.43,145.4,3.4391]
[1727872784752,0.12502,145.43,145.37,22.17]
[1727872784952,0.12502,145.43,145.41,3.439]
[1727872785451,0.12502,145.43,145.37,22.17]
[1727872785645,0.12502,145.43,145.41,3.4389]
[1727872785951,0.12502,145.43,145.39,16.51]
[1727872786553,0.12502,145.43,145.42,3.4388]
[1727872786851,0.12502,145.43,145.39,16.51]
[1727872787056,0.12502,145.43,145.4,3.4392]
[1727872787253,0.12502,145.43,145.39,16.51]
[1727872787254,0.12502,145.43,145.37,22.17]
[1727872787854,0.12502,145.43,145.38,5.66]
[1727872788357,3.56372,145.43,145.4,3.4391]
[1727872788965,3.4388,145.42,145.39,3.4394]
[1727872790055,3.56372,145.43,145.4,3.4391]
[1727872791657,3.56372,145.43,145.39,3.4395]
[1727872791658,3.4389,145.42,145.39,3.4395]
[1727872792163,3.56372,145.43,145.39,3.4395]
[1727872792359,3.56372,145.43,145.4,3.4392]
[1727872793163,0.12502,145.43,145.39,16.51]
[1727872794264,0.12502,145.43,145.41,3.4389]
[1727872795864,0.12502,145.43,145.39,16.51]
[1727872796359,0.12502,145.43,145.41,16.51]
[1727872796665,0.12502,145.43,145.42,12.62023862]
[1727872802063,0.12502,145.43,145.42,29.13023862]
[1727872802266,0.12502,145.49,145.42,25.69143862]
[1727872802671,0.12502,145.49,145.43,2.6195]
[1727872802874,0.12502,145.49,145.45,16.51]
[1727872803064,0.12502,145.49,145.46,5.66]
[1727872803259,16.63502,145.55,145.51,3.4365]
[1727872803260,0.12502,145.55,145.51,3.4365]
[1727872803465,0.12502,145.55,145.49,5.66]
[1727872803669,0.12502,145.55,145.49,6.9997]
[1727872803968,0.12502,145.55,145.52,3.4362]
[1727872804265,0.12502,145.55,145.52,3.38878848]
[1727872804464,0.12502,145.55,145.53,3.436]
[1727872804662,0.12502,145.55,145.52,3.4495685]
[1727872804870,0.12502,145.55,145.49,6.9997]
[1727872805066,0.12502,145.55,145.53,3.4361]
[1727872805266,0.12502,145.55,145.5,9.01989346]
[1727872805473,0.12502,145.55,145.52,3.4363]
[1727872805864,0.12502,145.55,145.51,3.41761532]
[1727872806166,0.12502,145.55,145.53,3.4362]
[1727872806369,0.12502,145.55,145.5,25.61235327]
[1727872806671,0.12502,145.55,145.54,3.4359]
[1727872807373,0.12502,145.55,145.54,25.6059]
[1727872809371,0.12502,145.61,145.54,22.17]
[1727872809569,3.55952,145.61,145.57,3.4351]
[1727872809964,0.12502,145.61,145.54,22.17]
[1727872810172,3.4348,145.59,145.54,22.17]
[1727872810471,0.12502,145.61,145.55,5.66]
[1727872810676,3.4347,145.6,145.57,3.4352]
[1727872811077,3.4347,145.6,145.55,5.66]
[1727872811078,0.12502,145.61,145.55,5.66]
[1727872811269,3.4347,145.6,145.57,3.4351]
[1727872811470,3.4347,145.6,145.55,5.66]
[1727872811872,3.55942,145.61,145.56,16.51]
[1727872812065,0.12502,145.61,145.56,16.51]
[1727872812475,0.12502,145.61,145.56,17.8236]
[1727872812680,0.12502,145.61,145.56,1.3136]
[1727872812979,3.4346,145.6,145.56,1.3136]
[1727872813273,0.12502,145.61,145.56,1.3136]
[1727872813469,0.12502,145.61,145.58,3.435]
[1727872813680,0.12502,145.61,145.56,17.8236]
[1727872813976,0.12502,145.61,145.59,3.4347]
[1727872814579,0.12502,145.61,145.6,3.4345]
[1727872816772,0.12502,145.67,145.6,16.51]
[1727872817075,0.12502,145.67,145.63,16.51]
[1727872817282,0.12502,145.67,145.64,3.4335]
[1727872817581,0.12502,145.67,145.63,22.17]
[1727872817772,0.12502,145.67,145.65,3.4332]
[1727872818168,0.12502,145.67,145.65,16.51]
[1727872818571,0.12502,145.67,145.66,3.4331]
[1727872819076,0.12502,145.67,145.66,6.82341496]
[1727872820475,3.4321,145.71,145.68,3.4326]
[1727872820672,0.12502,145.73,145.67,5.66]
[1727872820878,0.12502,145.73,145.68,3.45884794]
[1727872821073,3.4318,145.72,145.69,3.4324]
[1727872821281,0.12502,145.73,145.68,3.42623673]
[1727872821884,3.4319,145.72,145.69,3.4324]
[1727872822880,3.4319,145.71,145.69,3.4324]
[1727872823086,0.12502,145.73,145.68,3.4326]
[1727872823284,0.12502,145.73,145.67,9.09447535]
[1727872823486,3.4318,145.72,145.67,9.09447535]
[1727872824074,3.4322,145.71,145.67,9.09447535]
[1727872824279,0.12502,145.73,145.68,3.4325]
[1727872824783,3.4321,145.71,145.67,9.09447535]
[1727872825185,3.4321,145.71,145.68,3.4326]
[1727872825586,3.4321,145.71,145.67,9.09447535]
[1727872826188,3.4321,145.71,145.68,3.4326]
[1727872828386,3.4325,145.69,145.67,5.66]
[1727872828890,3.4323,145.7,145.67,9.0928]
[1727872829086,0.12502,145.73,145.67,5.66]
[1727872829484,0.12502,145.73,145.69,16.51]
[1727872829889,3.4319,145.72,145.69,19.9423]
[1727872830793,3.4322,145.7,145.67,3.4328]
[1727872830997,0.12502,145.73,145.65,17.7771]
[1727872831187,0.12502,145.73,145.67,5.64]
[1727872831384,0.12502,145.73,145.67,9.0728]
[1727872831590,0.12502,145.73,145.67,22.15]
[1727872832392,0.12502,145.73,145.71,16.51]
[1727872833101,0.12502,145.73,145.69,16.51]
[1727872833599,3.55662,145.73,145.7,3.432]
[1727872834492,3.4317,145.72,145.7,3.432]
[1727872834802,0.12502,145.73,145.68,5.64]
[1727872835094,0.12502,145.73,145.67,22.15]
[1727872835299,0.12502,145.73,145.64,8.3176]
[1727872835300,16.63502,145.73,145.64,8.3176]
[1727872835502,4.0214,145.72,145.64,8.3176]
[1727872835892,4.0214,145.72,145.65,16.51]
[1727872836497,1.3717,145.72,145.65,16.51]
[1727872836703,0.12502,145.73,145.67,16.51]
[1727872836894,0.12502,145.73,145.67,19.91495077]
[1727872837597,3.4318,145.72,145.67,19.91495077]
[1727872837799,3.4318,145.72,145.68,5.64]
[1727872838195,0.12502,145.73,145.69,16.51]
[1727872839003,3.55662,145.73,145.7,3.432]
[1727872840605,0.12502,145.73,145.69,16.51]
[1727872841302,0.12502,145.73,145.68,9.0725]
[1727872841498,0.12502,145.73,145.66,9.073]
[1727872841699,3.4326,145.69,145.66,9.073]
[1727872841899,3.4326,145.69,145.66,5.64]
[1727872842105,5.76502,145.73,145.66,9.11873266]
[1727872842305,3.4322,145.7,145.66,9.11873266]
[1727872842905,3.4322,145.7,145.67,3.4328]
[1727872843803,3.432,145.71,145.68,3.4324]
[1727872844205,3.432,145.71,145.67,16.51]
[1727872844406,3.432,145.71,145.68,3.4326]
[1727872845005,0.12502,145.73,145.69,16.51]
[1727872845400,3.55662,145.73,145.69,16.51]
[1727872845607,3.55662,145.73,145.7,3.4319]
[1727872845803,3.55662,145.73,145.69,16.51]
[1727872846005,0.12502,145.73,145.72,3.4317]
[1727872846202,0.12502,145.73,145.7,22.15]
[1727872847107,0.12502,145.73,145.71,3.4318]
[1727872848915,0.12502,145.79,145.7,22.15]
[1727872849116,0.12502,145.79,145.72,16.51]
[1727872849416,0.12502,145.79,145.71,19.1316]
[1727872849617,0.12502,145.79,145.71,16.51]
[1727872850018,3.4313,145.74,145.71,19.9418]
[1727872850613,3.4313,145.74,145.72,3.4316]
[1727872851026,0.12502,145.79,145.71,16.51]
[1727872851318,3.4312,145.75,145.72,3.4316]
[1727872851520,0.12502,145.79,145.72,3.4316]
[1727872852318,3.4312,145.75,145.72,3.4316]
[1727872854328,0.12502,145.79,145.71,16.51]
[1727872854329,3.4316,145.73,145.71,16.51]
[1727872858224,16.51,145.77,145.69,3.4324]
[1727872858623,2.6437,145.77,145.7,16.51]
[1727872858931,3.4316,145.73,145.7,19.942]
[1727872859124,3.4316,145.73,145.7,16.51]
[1727872859929,2.6437,145.77,145.7,16.51]
[1727872860130,3.4314,145.74,145.71,3.4319]
[1727872863136,2.6437,145.77,145.68,4.7699]
[1727872863332,2.6437,145.77,145.68,6.9573]
[1727872863532,5.62,145.76,145.72,10.55]
[1727872863834,0.12502,145.79,145.74,10.55]
[1727872864027,0.12502,145.79,145.68,6.9573]
[1727872864028,0.12502,145.79,145.75,10.55]
[1727872865241,0.12502,145.79,145.78,10.55]
[1727872865734,3.55512,145.79,145.78,10.55]
[1727872866732,3.4303,145.78,145.77,10.55]
[1727872867639,3.4303,145.78,145.76,3.4306]
[1727872868031,0.12502,145.79,145.76,3.4306]
[1727872868228,0.12502,145.79,145.77,3.4303]
[1727872868542,0.12502,145.79,145.77,16.47]
[1727872869434,0.12502,145.79,145.78,3.4303]
[1727872870035,0.12502,145.79,145.77,19.9004]
[1727872870335,0.12502,145.79,145.77,16.47]
[1727872870635,0.12502,145.79,145.76,5.62]
[1727872871043,3.55522,145.79,145.76,9.0506]
[1727872871538,0.12502,145.79,145.72,5.62]
[1727872871739,16.47,145.77,145.68,8.2472]
[1727872871938,19.96925898,145.77,145.68,8.2472]
[1727872872134,3.4322,145.7,145.68,8.2472]
[1727872872533,16.47,145.77,145.68,11.6798]
[1727872872739,3.432,145.71,145.68,11.6798]
[1727872872935,3.432,145.71,145.68,8.2472]
[1727872873541,3.4317,145.72,145.69,16.47]
[1727872874043,3.4317,145.72,145.69,19.9022]
[1727872874238,22.21502,145.79,145.69,16.47]
[1727872874941,3.4316,145.73,145.7,3.4321]
[1727872875845,16.47,145.77,145.68,11.6797]
[1727872876045,16.47,145.77,145.67,23.48362]
[1727872876046,16.47,145.75,145.67,23.48362]
[1727872876346,3.4326,145.68,145.67,0.12502]
[1727872877837,16.47,145.68,145.61,0.12502]
[1727872878141,5.64,145.67,145.61,0.12502]
[1727872878341,6.98812,145.73,145.61,0.12502]
[1727872878342,22.11,145.68,145.61,0.12502]
[1727872879347,3.4337,145.64,145.61,3.55922]
[1727872879539,5.64,145.68,145.61,0.12502]
[1727872879944,3.4331,145.66,145.63,3.4338]
[1727872880147,5.64,145.7,145.62,16.47]
[1727872880341,5.64,145.7,145.62,17.8224]
[1727872880537,3.4329,145.68,145.64,3.4335]
[1727872880737,16.47,145.72,145.64,16.47]
[1727872880738,5.64,145.72,145.64,16.47]
[1727872880938,5.64,145.72,145.65,3.4333]
[1727872880939,3.4328,145.68,145.65,3.4333]
[1727872881142,3.4328,145.68,145.64,22.11]
[1727872881446,3.4324,145.7,145.66,3.4329]
[1727872881749,5.64,145.72,145.66,3.4329]
[1727872882046,3.4321,145.71,145.68,3.4325]
[1727872883843,0.12502,145.73,145.66,19.89829638]
[1727872884044,3.4322,145.7,145.67,3.4328]
[1727872884547,0.12502,145.73,145.67,3.4328]
[1727872884751,3.4318,145.72,145.68,16.47]
[1727872885043,0.12502,145.73,145.68,16.47]
[1727872885238,3.55662,145.73,145.7,3.4321]
[1727872886450,3.55662,145.73,145.7,19.9021]
[1727872887046,0.12502,145.73,145.7,16.47]
[1727872887352,0.12502,145.73,145.71,3.4317]
[1727872888148,0.12502,145.73,145.71,3.4319]
[1727872888450,0.12502,145.73,145.72,16.47]
[1727872889355,0.12502,145.79,145.72,22.11]
[1727872889542,0.12502,145.79,145.74,16.47]
[1727872889949,3.4307,145.77,145.74,19.9011]
[1727872890157,3.4307,145.77,145.74,16.47]
[1727872891454,0.12502,145.79,145.74,16.47]
[1727872891654,3.431,145.75,145.72,22.11]
[1727872891849,16.59502,145.79,145.7,1.3331]
[1727872892155,16.47,145.77,145.7,6.9531]
[1727872892357,3.4318,145.72,145.7,6.9531]
[1727872892561,3.4318,145.72,145.7,5.62]
[1727872893059,3.4321,145.71,145.69,1.2747]
[1727872893251,3.4321,145.71,145.69,6.8947]
[1727872893452,8.2782,145.78,145.69,6.8947]
[1727872893651,3.4319,145.72,145.69,10.3271]
[1727872893853,3.4319,145.72,145.69,6.8947]
[1727872894061,16.47,145.77,145.69,6.8947]
[1727872894561,3.4316,145.73,145.7,3.4321]
[1727872894755,8.2782,145.78,145.69,23.3647]
[1727872895059,8.2782,145.78,145.71,3.4317]
[1727872895060,3.4312,145.75,145.71,3.4317]
[1727872895459,3.4312,145.75,145.71,16.47]
[1727872895757,3.4309,145.76,145.73,3.4313]
[1727872896053,6.8932,145.78,145.71,16.47]
[1727872896255,3.4314,145.74,145.71,19.9019]
[1727872896660,6.8932,145.78,145.71,16.47]
[1727872896857,3.4308,145.76,145.73,3.4314]
[1727872897557,0.12502,145.79,145.72,16.47]
[1727872897763,3.4305,145.77,145.74,19.9011]
[1727872899361,0.12502,145.79,145.74,19.88280008]
[1727872900057,3.4304,145.78,145.75,3.4309]
[1727872901752,3.4304,145.78,145.74,19.88280008]
[1727872901962,3.4304,145.78,145.75,3.4309]
[1727872902365,3.55522,145.79,145.74,19.88280008]
[1727872902563,3.55522,145.79,145.75,3.4309]
[1727872903361,3.4303,145.78,145.75,3.4309]
[1727872904463,0.12502,145.79,145.72,16.47]
[1727872904662,0.12502,145.79,145.72,22.09]
[1727872905057,3.4304,145.78,145.75,3.4309]
[1727872905264,3.4304,145.78,145.75,6.9134462]
[1727872905961,0.12502,145.79,145.75,3.4825462]
[1727872906160,3.55522,145.79,145.76,3.4307]
[1727872906763,0.12502,145.79,145.76,3.4307]
[1727872906963,0.12502,145.79,145.75,3.4825462]
[1727872906964,3.4303,145.78,145.75,3.4825462]
[1727872907168,3.4303,145.78,145.75,6.9134462]
[1727872907359,0.12502,145.79,145.75,3.4825462]
[1727872907567,0.12502,145.79,145.76,3.4307]
[1727872908272,0.12502,145.79,145.76,22.09]
[1727872908764,0.12502,145.79,145.77,3.4304]
[1727872909365,3.55512,145.79,145.76,25.5206]
[1727872909566,0.12502,145.79,145.76,22.09]
[1727872910078,0.12502,145.79,145.75,3.4825462]
[1727872910270,0.12502,145.79,145.74,16.47]
[1727872910570,3.4309,145.76,145.73,11.6954]
[1727872911170,0.12502,145.79,145.73,6.8846]
[1727872911771,3.4307,145.77,145.74,6.80272644]
[1727872912074,0.12502,145.79,145.73,6.8846]
[1727872912469,3.4311,145.75,145.73,6.8846]
[1727872913069,3.4304,145.78,145.74,6.81497797]
[1727872913273,3.4304,145.78,145.74,3.38397797]
[1727872914083,3.4304,145.78,145.75,3.4309]
[1727872914671,3.55522,145.79,145.76,3.4306]
[1727872915178,0.12502,145.79,145.78,3.4303]
[1727872915374,0.12502,145.79,145.77,16.47]